bitfinex/quotes_BTCUSD_20251201
["timestamp","ask_amount","ask_price","bid_price","bid_amount"]
[1764548698068,0.3874,88607.0,88605.0,0.22572089]
[1764548698266,0.3874,88607.0,88595.0,0.11249107]
[1764548698267,0.01128604,88605.0,88595.0,0.11249107]
[1764548698471,0.01128668,88600.0,88595.0,0.01128731]
[1764548698666,0.0112868,88599.0,88595.0,0.01128731]
[1764548698867,0.01128706,88597.0,88593.0,0.23703775]
[1764548699066,0.37,88597.0,88594.0,0.01128744]
[1764548699491,0.37,88597.0,88595.0,0.22574637]
[1764548699688,0.0074,88596.0,88595.0,0.22574637]
[1764548699892,0.4174,88596.0,88595.0,0.22574637]
[1764548700319,0.4174,88596.0,88589.0,0.01128808]
[1764548700487,0.4174,88596.0,88575.0,0.12695]
[1764548700488,0.01128795,88590.0,88575.0,0.12695]
[1764548700702,0.0074,88589.0,88586.0,0.01128846]
[1764548700906,0.38,88589.0,88587.0,0.22576676]
[1764548701109,0.01128222,88635.0,88624.0,0.01128362]
[1764548701287,0.22565937,88630.0,88625.0,0.10120376]
[1764548701494,0.36,88630.0,88627.0,0.2369481]
[1764548701809,0.36039663,88630.0,88627.0,0.2369481]
[1764548701976,0.0074,88629.0,88627.0,0.2369481]
[1764548702176,0.3674,88629.0,88627.0,0.2369481]
[1764548702414,0.36,88629.0,88628.0,0.09498]
[1764548702657,0.3674,88629.0,88628.0,0.09498]
[1764548702865,0.3674,88629.0,88625.0,0.10120376]
[1764548703064,0.3674,88629.0,88626.0,0.23695078]
[1764548703724,0.01128337,88626.0,88618.0,0.01128438]
[1764548703910,0.01128337,88626.0,88612.0,0.26898139]
[1764548703911,0.33,88626.0,88625.0,0.3381572]
[1764548704110,0.00039663,88630.0,88625.0,0.44402923]
[1764548704351,0.00039663,88630.0,88629.0,0.2365518]
[1764548704586,0.141179,88640.0,88639.0,0.23652634]
[1764548704784,0.01216788,88640.0,88639.0,0.23652634]
[1764548704900,0.00476788,88640.0,88639.0,0.22563431]
[1764548705100,0.0002,88680.0,88649.0,0.22560886]
[1764548705349,0.0074,88652.0,88649.0,0.23650089]
[1764548705546,0.0074,88652.0,88649.0,0.22560886]
[1764548705746,0.0074,88652.0,88649.0,0.23650089]
[1764548705905,0.0074,88652.0,88649.0,0.24778133]
[1764548706106,0.0002,88680.0,88679.0,0.23642456]
[1764548706456,0.00031877,88680.0,88679.0,0.23642456]
[1764548706654,0.00771877,88680.0,88679.0,0.23642456]
[1764548707216,0.00431877,88680.0,88679.0,0.22553253]
[1764548707421,0.0002,88710.0,88709.0,0.22545626]
[1764548707660,0.00031873,88710.0,88709.0,0.22545626]
[1764548707837,0.39771873,88710.0,88709.0,0.63634829]
[1764548708422,0.00771873,88710.0,88709.0,0.63634829]
[1764548709250,0.00031873,88710.0,88709.0,0.62545626]
[1764548709454,0.00431873,88710.0,88709.0,0.63634829]
[1764548709664,0.00431873,88710.0,88709.0,0.62545626]
[1764548709867,0.00031873,88710.0,88709.0,0.62545626]
[1764548710074,0.40131873,88710.0,88709.0,0.62545626]
[1764548710272,0.00131873,88710.0,88709.0,0.4]
[1764548710448,0.23031873,88710.0,88709.0,0.62545626]
[1764548710664,0.23031873,88710.0,88709.0,0.4]
[1764548711073,0.23031873,88710.0,88699.0,0.01127408]
[1764548711294,0.23031873,88710.0,88709.0,0.32666002]
[1764548711453,0.38771873,88710.0,88709.0,0.50120376]
[1764548711636,0.00771873,88710.0,88709.0,0.72666002]
[1764548711835,0.00031873,88710.0,88709.0,0.72666002]
[1764548712089,0.01126646,88759.0,88729.0,0.23629747]
[1764548712322,0.11799567,88730.0,88729.0,0.23629747]
[1764548712529,0.11799567,88730.0,88729.0,0.01089203]
[1764548712736,0.16799567,88730.0,88726.0,0.10120376]
[1764548712942,0.33799567,88730.0,88726.0,0.10120376]
[1764548713144,0.33799567,88730.0,88716.0,0.01127192]
[1764548713145,0.01127065,88726.0,88716.0,0.01127192]
[1764548713270,0.01127128,88721.0,88712.0,0.01127243]
[1764548713473,0.01127141,88720.0,88709.0,0.50120376]
[1764548713705,0.23670558,88718.0,88709.0,0.50120376]
[1764548713909,0.23670558,88718.0,88715.0,0.01127205]
[1764548713910,0.38,88718.0,88715.0,0.01127205]
[1764548714116,0.38,88718.0,88716.0,0.22543706]
[1764548714315,0.001,88726.0,88725.0,0.22541561]
[1764548714520,0.3484,88726.0,88723.0,0.23669032]
[1764548714805,0.35967065,88726.0,88708.0,0.01089203]
[1764548714946,0.01127154,88719.0,88713.0,0.0112723]
[1764548715194,0.01127154,88719.0,88712.0,0.01127243]
[1764548715195,0.37,88719.0,88712.0,0.01127243]
[1764548715396,0.37,88719.0,88710.0,0.10120376]
[1764548715397,0.01127192,88716.0,88710.0,0.10120376]
[1764548715600,0.38,88716.0,88710.0,0.10120376]
[1764548715796,0.38,88716.0,88712.0,0.01127243]
[1764548716069,0.01127205,88715.0,88710.0,0.10120376]
[1764548716274,0.41127205,88715.0,88714.0,0.07]
[1764548716477,0.41562122,88715.0,88714.0,0.07]
[1764548716688,0.40434917,88715.0,88714.0,0.08089203]
[1764548716896,0.40434917,88715.0,88714.0,0.07]
[1764548717761,0.41174917,88715.0,88714.0,0.07]
[1764548718572,0.23678084,88690.0,88679.0,0.01127662]
[1764548718779,0.04574,88677.0,88661.0,0.10120376]
[1764548718998,0.0112784,88665.0,88648.0,0.04628057]
[1764548719210,0.0112784,88665.0,88641.0,0.01128146]
[1764548719211,0.01128018,88651.0,88641.0,0.01128146]
[1764548719436,0.36,88651.0,88643.0,0.0112812]
[1764548719635,0.01128057,88648.0,88638.0,0.01128184]
[1764548719841,0.01128057,88648.0,88643.0,0.00011873]
[1764548719842,0.22561904,88645.0,88643.0,0.00011873]
[1764548720056,0.59561904,88645.0,88643.0,0.00011873]
[1764548720268,0.09859,88644.0,88643.0,0.00011873]
[1764548720494,0.47859,88644.0,88643.0,0.00011873]
[1764548721239,0.48948203,88644.0,88643.0,0.00011873]
[1764548721451,0.47859,88644.0,88643.0,0.00011873]
[1764548722006,0.3874,88644.0,88643.0,0.00011873]
[1764548722643,0.381,88644.0,88643.0,0.00011873]
[1764548722805,0.3884,88644.0,88643.0,0.00011873]
[1764548723008,0.3874,88644.0,88643.0,0.00011873]
[1764548723213,0.3884,88644.0,88643.0,0.00011873]
[1764548723618,0.3874,88644.0,88643.0,0.00011873]
[1764548723838,0.48599,88644.0,88643.0,0.00011873]
[1764548724032,0.39829203,88644.0,88643.0,0.00011873]
[1764548724195,0.3874,88644.0,88643.0,0.00011873]
[1764548724392,0.4788,88644.0,88643.0,0.00011873]
[1764548725140,0.48969203,88644.0,88643.0,0.00011873]
[1764548725345,0.49069203,88644.0,88643.0,0.00011873]
[1764548725524,0.4714,88644.0,88643.0,0.00011873]
[1764548725723,0.4788,88644.0,88643.0,0.00011873]
[1764548725926,0.4724,88644.0,88643.0,0.00011873]
[1764548726130,0.38,88644.0,88643.0,0.22574286]
[1764548726329,0.3874,88644.0,88643.0,0.00011873]
[1764548726545,0.003,88644.0,88643.0,0.00011873]
[1764548726731,0.3504,88644.0,88643.0,0.08101076]
[1764548726926,0.0104,88644.0,88643.0,0.08101076]
[1764548727578,0.4204,88644.0,88643.0,0.01101076]
[1764548727720,0.4204,88644.0,88643.0,0.40011873]
[1764548728142,0.4174,88644.0,88643.0,0.40011873]
[1764548728359,0.05701688,88677.0,88663.0,0.01127866]
[1764548728680,0.01127904,88660.0,88651.0,0.01128018]
[1764548728923,0.01127904,88660.0,88643.0,0.41239993]
[1764548728924,0.01127967,88655.0,88643.0,0.41239993]
[1764548729094,0.01127891,88661.0,88655.0,0.01127967]
[1764548729311,0.01127891,88661.0,88647.0,0.01128069]
[1764548729312,0.23687296,88656.0,88647.0,0.01128069]
[1764548729525,0.23687296,88656.0,88643.0,0.00111873]
[1764548729526,0.01128018,88651.0,88643.0,0.00111873]
[1764548729695,0.01128044,88649.0,88644.0,0.01128107]
[1764548729900,0.00220695,88645.0,88644.0,0.01128107]
[1764548730136,0.39220695,88645.0,88644.0,0.01128107]
[1764548730293,0.39220695,88645.0,88644.0,0.12337686]
[1764548730496,0.39960695,88645.0,88644.0,0.01128107]
[1764548730726,0.39960695,88645.0,88644.0,0.11248483]
[1764548731301,0.00220695,88645.0,88644.0,0.11248483]
[1764548731499,0.00220695,88645.0,88644.0,0.12337686]
[1764548731500,0.19960695,88645.0,88644.0,0.12337686]
[1764548731857,0.19960695,88645.0,88643.0,0.22574119]
[1764548731858,0.36960695,88645.0,88643.0,0.22574246]
[1764548732072,0.3674,88645.0,88644.0,0.10120376]
[1764548732188,0.3674,88645.0,88644.0,0.10320376]
[1764548732388,0.3674,88645.0,88644.0,0.10120376]
[1764548732594,0.3674,88645.0,88643.0,0.22574098]
[1764548732595,0.3674,88645.0,88643.0,0.22574143]
[1764548732790,0.3674,88645.0,88644.0,0.10220376]
[1764548733018,0.3674,88645.0,88644.0,0.001]
[1764548733215,0.3674,88645.0,88644.0,0.10220376]
[1764548733425,0.6055,88645.0,88644.0,0.001]
[1764548734155,0.5141,88645.0,88644.0,0.001]
[1764548734554,0.5141,88645.0,88644.0,0.22562158]
[1764548734555,0.5067,88645.0,88644.0,0.22562158]
[1764548734780,0.5087,88645.0,88644.0,0.22562158]
[1764548735128,0.5141,88645.0,88644.0,0.22562158]
[1764548735337,0.5141,88645.0,88643.0,0.00011873]
[1764548735338,0.6055,88645.0,88643.0,0.00011873]
[1764548735539,0.11943471,88644.0,88643.0,0.00011873]
[1764548735732,0.44943471,88644.0,88643.0,0.00011873]
[1764548735851,0.4214,88644.0,88643.0,0.00011873]
[1764548736059,0.33,88644.0,88643.0,0.00011873]
[1764548737173,0.4214,88644.0,88643.0,0.00011873]
[1764548737386,0.6491979,88644.0,88643.0,0.00011873]
[1764548737791,0.66008993,88644.0,88643.0,0.00011873]
[1764548737919,0.42357632,88644.0,88643.0,0.00011873]
[1764548738128,0.6491979,88644.0,88643.0,0.00011873]
[1764548738905,0.6511979,88644.0,88643.0,0.00011873]
[1764548739033,0.6491979,88644.0,88643.0,0.00011873]
[1764548739247,0.42557632,88644.0,88643.0,0.00011873]
[1764548739447,0.01128146,88641.0,88636.0,0.01128209]
[1764548739654,0.01128158,88640.0,88636.0,0.00011877]
[1764548739858,0.00196191,88637.0,88636.0,0.00011877]
[1764548740059,0.36196191,88637.0,88636.0,0.00011877]
[1764548740263,0.45336191,88637.0,88636.0,0.00011877]
[1764548741048,0.36196191,88637.0,88636.0,0.00011877]
[1764548741282,0.00196191,88637.0,88636.0,0.13078877]
[1764548741498,0.00196191,88637.0,88636.0,0.45378877]
[1764548741695,0.00196191,88637.0,88636.0,0.4646808]
[1764548741902,0.00196191,88637.0,88636.0,0.8646808]
[1764548742316,0.00196191,88637.0,88636.0,0.85378877]
[1764548743554,0.00196191,88637.0,88636.0,0.8564908]
[1764548744002,0.00196191,88637.0,88636.0,0.8614908]
[1764548744310,0.00196191,88637.0,88636.0,0.45754877]
[1764548744476,0.35936191,88637.0,88636.0,0.45754877]
[1764548744675,0.00936191,88637.0,88636.0,0.5304208]
[1764548744882,0.00936191,88637.0,88636.0,0.51952877]
[1764548745082,0.00936191,88637.0,88636.0,0.5304208]
[1764548745285,0.0914,88686.0,88674.0,0.23682042]
[1764548745557,0.02818679,88694.0,88688.0,0.01127548]
[1764548745762,0.0461,88703.0,88699.0,0.01127408]
[1764548746057,0.3961,88703.0,88698.0,0.01127421]
[1764548746263,0.35,88703.0,88701.0,0.22547622]
[1764548746470,0.35011866,88703.0,88701.0,0.22547622]
[1764548746696,0.00736,88702.0,88701.0,0.22547622]
[1764548746904,0.35736,88702.0,88701.0,0.01089203]
[1764548747122,0.35736,88702.0,88691.0,0.10120376]
[1764548747365,0.02818457,88701.0,88692.0,0.10120376]
[1764548747540,0.01127421,88698.0,88689.0,0.01127535]
[1764548747743,0.03946017,88697.0,88690.0,0.22550456]
[1764548747963,0.01127446,88696.0,88692.0,0.01127497]
[1764548748182,0.02818648,88695.0,88689.0,0.01127535]
[1764548748381,0.38818648,88695.0,88690.0,0.10120376]
[1764548748527,0.36,88695.0,88692.0,0.01127497]
[1764548749244,0.36,88695.0,88693.0,0.22549693]
[1764548749440,0.00011866,88703.0,88702.0,0.23636608]
[1764548749661,0.35747866,88703.0,88702.0,0.23636608]
[1764548750064,0.35747866,88703.0,88702.0,0.22547405]
[1764548750228,0.35011866,88703.0,88702.0,0.22547405]
[1764548750432,0.00011866,88703.0,88702.0,0.61045405]
[1764548750649,0.00011866,88703.0,88702.0,0.54847405]
[1764548750868,0.00011866,88703.0,88702.0,0.95936608]
[1764548751111,0.37011866,88703.0,88702.0,0.4]
[1764548751314,0.41912866,88703.0,88701.0,0.07]
[1764548751518,0.3529683,88702.0,88701.0,0.07]
[1764548751711,0.01127522,88690.0,88685.0,0.01127586]
[1764548751848,0.01127548,88688.0,88679.0,0.22553251]
[1764548752202,0.23680187,88682.0,88675.0,0.01127713]
[1764548752349,0.23680187,88682.0,88678.0,0.01127675]
[1764548752350,0.37127624,88682.0,88678.0,0.01127675]
[1764548752536,0.36,88682.0,88677.0,0.01127688]
[1764548752743,0.36,88682.0,88679.0,0.01127662]
[1764548752938,0.36,88682.0,88680.0,0.22552999]
[1764548753161,0.36,88682.0,88679.0,0.01127662]
[1764548753363,0.36,88682.0,88679.0,0.2368068]
[1764548753567,0.36,88682.0,88680.0,0.22552999]
[1764548753767,0.01127408,88699.0,88694.0,0.01127471]
[1764548753972,0.01127459,88695.0,88690.0,0.01127522]
[1764548754164,0.40127459,88695.0,88690.0,0.01127522]
[1764548754369,0.01127471,88694.0,88690.0,0.01127522]
[1764548754589,0.01127586,88685.0,88680.0,0.01127649]
[1764548754765,0.00736,88684.0,88681.0,0.01127637]
[1764548754970,0.01127611,88683.0,88672.0,0.01127751]
[1764548755167,0.01127637,88681.0,88677.0,0.01127688]
[1764548755506,0.01127637,88681.0,88679.0,0.23680845]
[1764548755507,0.38,88681.0,88679.0,0.23680845]
[1764548755805,0.38,88681.0,88680.0,0.07]
[1764548756209,0.70483745,88681.0,88680.0,0.07]
[1764548756370,0.70483745,88681.0,88669.0,0.01127789]
[1764548756371,0.01127726,88674.0,88669.0,0.01127789]
[1764548756565,0.36,88674.0,88673.0,0.01127738]
[1764548756764,0.36736,88674.0,88671.0,0.33803262]
[1764548757083,0.41637,88674.0,88671.0,0.1124814]
[1764548757606,0.41648862,88674.0,88671.0,0.1124814]
[1764548758737,0.42776588,88674.0,88671.0,0.01127764]
[1764548758893,0.41648862,88674.0,88672.0,0.22555034]
[1764548759081,0.42776588,88674.0,88668.0,0.10120376]
[1764548759417,0.2368332,88670.0,88652.0,0.01128006]
[1764548759563,0.2368332,88670.0,88640.0,0.82560082]
[1764548759564,0.01127802,88668.0,88664.0,0.23684825]
[1764548759767,0.41,88668.0,88667.0,0.10120376]
[1764548759966,0.41736,88668.0,88667.0,0.33765885]
[1764548760323,0.41736,88668.0,88667.0,0.22556306]
[1764548760935,0.01127866,88663.0,88660.0,0.09803809]
[1764548761118,0.07034,88668.0,88664.0,0.23684862]
[1764548761339,0.01127548,88688.0,88673.0,0.22554779]
[1764548761544,0.00747862,88674.0,88673.0,0.29841982]
[1764548761742,0.40747862,88674.0,88673.0,0.36039982]
[1764548761947,0.40747862,88674.0,88673.0,0.29841982]
[1764548762635,0.40747862,88674.0,88673.0,0.22554779]
[1764548762795,0.40747862,88674.0,88671.0,0.01127764]
[1764548762796,0.40747862,88674.0,88672.0,0.22555024]
[1764548763033,0.40747862,88674.0,88665.0,0.0112784]
[1764548763034,0.21183065,88671.0,88657.0,0.01127942]
[1764548763203,0.01127789,88669.0,88660.0,0.09803809]
[1764548763405,0.25496306,88667.0,88660.0,0.09803809]
[1764548763605,0.59496306,88667.0,88660.0,0.09803809]
[1764548763940,0.22557832,88661.0,88660.0,0.09803809]
[1764548764152,0.63557832,88661.0,88660.0,0.09803809]
[1764548764379,0.74578035,88661.0,88660.0,0.09803809]
[1764548765198,0.50931,88661.0,88660.0,0.09803809]
[1764548765419,0.74578035,88661.0,88660.0,0.09803809]
[1764548766582,0.73488832,88661.0,88660.0,0.09803809]
[1764548766785,0.80094334,88661.0,88660.0,0.09803809]
[1764548766988,0.80830334,88661.0,88660.0,0.09803809]
[1764548767165,0.63557832,88661.0,88660.0,0.09803809]
[1764548767366,0.73488832,88661.0,88660.0,0.09803809]
[1764548767569,0.72752832,88661.0,88660.0,0.09803809]
[1764548767792,0.79741131,88661.0,88660.0,0.09803809]
[1764548767970,0.80830334,88661.0,88660.0,0.09803809]
[1764548768744,1.13130334,88661.0,88660.0,0.09803809]
[1764548769133,1.11578657,88661.0,88660.0,0.09803809]
[1764548769336,1.12114657,88661.0,88660.0,0.09803809]
[1764548769542,0.8090386,88661.0,88660.0,0.09803809]
[1764548769749,0.8036786,88661.0,88660.0,0.09803809]
[1764548770112,0.80014657,88661.0,88660.0,0.09803809]
[1764548770518,0.8110386,88661.0,88660.0,0.09803809]
[1764548770692,0.73762358,88661.0,88660.0,0.09803809]
[1764548771478,0.84971937,88661.0,88660.0,0.09803809]
[1764548771832,0.84971937,88661.0,88635.0,0.01128222]
[1764548771833,0.01128107,88644.0,88635.0,0.01128222]
[1764548772028,0.0112812,88643.0,88639.0,0.01128171]
[1764548772226,0.01128133,88642.0,88636.0,0.10120376]
[1764548772431,0.36128133,88642.0,88639.0,0.01128171]
[1764548772645,0.35,88642.0,88639.0,0.23691562]
[1764548772864,0.67493907,88642.0,88637.0,0.22563831]
[1764548773072,0.35,88642.0,88637.0,0.22563831]
[1764548773274,0.68621815,88642.0,88638.0,0.01128184]
[1764548773476,0.46059133,88642.0,88638.0,0.01128184]
[1764548773651,0.6862186,88642.0,88638.0,0.01128184]
[1764548773855,0.35,88642.0,88636.0,0.01128209]
[1764548774060,0.35,88642.0,88639.0,0.01128171]
[1764548774306,0.00736,88641.0,88639.0,0.01128171]
[1764548774515,0.00731492,88640.0,88639.0,0.01128171]
[1764548774720,0.2452,88658.0,88656.0,0.01127955]
[1764548774923,0.25256,88657.0,88656.0,0.09016924]
[1764548775100,0.70554,88657.0,88641.0,0.01089203]
[1764548775326,0.70554,88657.0,88613.0,0.4]
[1764548775327,0.01128057,88648.0,88627.0,0.01089203]
[1764548775478,0.01128095,88645.0,88637.0,0.01128197]
[1764548775678,0.01128095,88645.0,88634.0,0.01128235]
[1764548775679,0.01128146,88641.0,88634.0,0.01128235]
[1764548775882,0.4,88641.0,88634.0,0.01128235]
[1764548776059,0.01128158,88640.0,88634.0,0.01128235]
[1764548776257,0.00736,88639.0,88636.0,0.01128209]
[1764548776484,0.35736,88639.0,88637.0,0.2256394]
[1764548776657,0.00736,88638.0,88637.0,0.2256394]
[1764548776868,0.01128069,88647.0,88643.0,0.0112812]
[1764548777063,0.00736,88646.0,88643.0,0.0112812]
[1764548777267,0.00760513,88645.0,88644.0,0.23690265]
[1764548777462,0.34760513,88645.0,88644.0,0.23690265]
[1764548778191,0.34024513,88645.0,88644.0,0.23690265]
[1764548778397,0.14694513,88645.0,88644.0,0.38719265]
[1764548778569,0.14694513,88645.0,88644.0,0.72108468]
[1764548778570,0.00024513,88645.0,88644.0,0.72108468]
[1764548778895,0.00960513,88645.0,88644.0,0.71019265]
[1764548779167,0.00760513,88645.0,88644.0,1.12108468]
[1764548779780,0.39760513,88645.0,88644.0,1.12108468]
[1764548779940,0.00760513,88645.0,88644.0,1.12108468]
[1764548780564,0.09760513,88645.0,88644.0,1.12108468]
[1764548781381,0.09760513,88645.0,88644.0,1.11019265]
[1764548781553,0.09760513,88645.0,88644.0,1.11419265]
[1764548781753,0.00760513,88645.0,88644.0,1.11419265]
[1764548781951,0.00760513,88645.0,88644.0,1.11019265]
[1764548782943,0.00760513,88645.0,88644.0,1.11619265]
[1764548783161,0.00760513,88645.0,88644.0,1.02006265]
[1764548783580,0.40760513,88645.0,88644.0,0.64090265]
[1764548783779,0.40760513,88645.0,88644.0,0.79119265]
[1764548783780,0.15430513,88645.0,88644.0,0.79119265]
[1764548783984,0.15430513,88645.0,88644.0,0.70106265]
[1764548784313,0.56430513,88645.0,88644.0,0.70106265]
[1764548784497,0.17430513,88645.0,88644.0,0.70106265]
[1764548785123,0.17430513,88645.0,88644.0,0.69706265]
[1764548785288,0.17430513,88645.0,88644.0,0.78719265]
[1764548785489,0.17430513,88645.0,88644.0,0.65179468]
[1764548785690,0.54430513,88645.0,88644.0,0.65179468]
[1764548785894,0.78950513,88645.0,88644.0,0.004]
[1764548786115,0.78950513,88645.0,88644.0,0.22962158]
[1764548786319,0.78950513,88645.0,88644.0,0.004]
[1764548786479,0.54430513,88645.0,88644.0,0.22962158]
[1764548787141,0.54430513,88645.0,88644.0,0.06416]
[1764548787345,0.15430513,88645.0,88644.0,0.16518203]
[1764548788257,0.53430513,88645.0,88644.0,0.06016]
[1764548788431,0.53430513,88645.0,88644.0,0.07105203]
[1764548788632,0.53430513,88645.0,88643.0,0.22562192]
[1764548788833,0.54430513,88645.0,88643.0,0.23651395]
[1764548789039,0.39760513,88645.0,88641.0,0.01089203]
[1764548789238,0.39760513,88645.0,88644.0,0.004]
[1764548789406,0.48839513,88645.0,88644.0,0.004]
[1764548789608,0.48839513,88645.0,88641.0,0.4]
[1764548789833,0.09079,88644.0,88640.0,0.01128158]
[1764548790034,0.0112812,88643.0,88637.0,0.22563842]
[1764548790249,0.01128133,88642.0,88638.0,0.23691629]
[1764548790452,0.0607,88635.0,88631.0,0.01140161]
[1764548790651,0.4607,88635.0,88633.0,0.22564718]
[1764548790904,0.4,88635.0,88633.0,0.22564718]
[1764548791270,0.31643935,88634.0,88631.0,0.00011888]
[1764548791470,0.31643935,88634.0,88600.0,0.02693]
[1764548791471,0.01128515,88612.0,88607.0,0.01128579]
[1764548791721,0.04897,88608.0,88607.0,0.01128579]
[1764548791884,0.00011849,88612.0,88609.0,0.01128553]
[1764548792065,0.00736,88611.0,88610.0,0.22570815]
[1764548792267,0.37736,88611.0,88610.0,0.22570815]
[1764548792886,0.37736,88611.0,88609.0,0.23699462]
[1764548793086,0.06806,88610.0,88609.0,0.23699462]
[1764548793294,0.37,88610.0,88609.0,0.23699462]
[1764548793606,0.37736,88610.0,88609.0,0.01128553]
[1764548795198,0.37936,88610.0,88609.0,0.01128553]
[1764548795402,0.371,88610.0,88609.0,0.01128553]
[1764548795625,0.37836,88610.0,88609.0,0.01128553]
[1764548795820,0.38036,88610.0,88609.0,0.01128553]
[1764548796121,0.37736,88610.0,88609.0,0.01128553]
[1764548796323,0.37836,88610.0,88609.0,0.01128553]
[1764548796540,0.46915,88610.0,88608.0,0.22571306]
[1764548796742,0.0607,88609.0,88601.0,0.01128655]
[1764548796938,0.0607,88608.0,88607.0,0.01128579]
[1764548797139,0.4507,88608.0,88607.0,0.01128579]
[1764548797487,0.45806,88608.0,88607.0,0.01128579]
[1764548797658,0.1467,88597.0,88594.0,0.01128744]
[1764548797868,0.4967,88597.0,88596.0,0.32694758]
[1764548798013,0.50406,88597.0,88596.0,0.32694758]
[1764548798212,0.50406,88597.0,88596.0,0.72694758]
[1764548798615,0.50406,88597.0,88596.0,0.32694758]
[1764548799029,0.50406,88597.0,88596.0,0.32794758]
[1764548799226,0.50406,88597.0,88596.0,0.10220376]
[1764548800517,0.50406,88597.0,88596.0,0.10120376]
[1764548800726,0.50406,88597.0,88596.0,0.10220376]
[1764548801728,0.44815,88597.0,88596.0,0.001]
[1764548802470,0.67389127,88597.0,88596.0,0.001]
[1764548803536,0.35736,88597.0,88594.0,0.01128744]
[1764548803742,0.35736,88597.0,88589.0,0.01128808]
[1764548803743,0.01128744,88594.0,88589.0,0.01128808]
[1764548803950,0.0112877,88592.0,88588.0,0.01128821]
[1764548804152,0.01128821,88588.0,88584.0,0.01128872]
[1764548804369,0.34,88588.0,88586.0,0.01128846]
[1764548804574,0.0607,88585.0,88583.0,0.00213026]
[1764548804769,0.06806,88584.0,88583.0,0.00213026]
[1764548804973,0.47806,88584.0,88583.0,0.00213026]
[1764548805190,0.48895203,88584.0,88583.0,0.00213026]
[1764548805394,0.55147502,88584.0,88583.0,0.00213026]
[1764548805815,0.55159346,88584.0,88583.0,0.00213026]
[1764548806006,0.54423346,88584.0,88583.0,0.00213026]
[1764548806201,0.55259346,88584.0,88583.0,0.00213026]
[1764548806760,0.55259346,88584.0,88583.0,0.00413026]
[1764548806988,0.55259346,88584.0,88583.0,0.00213026]
[1764548807201,0.76747583,88584.0,88583.0,0.00213026]
[1764548807406,0.77047583,88584.0,88583.0,0.00213026]
[1764548807771,0.78336786,88584.0,88583.0,0.00213026]
[1764548807965,0.76511583,88584.0,88583.0,0.00213026]
[1764548808172,0.47481844,88584.0,88583.0,0.00213026]
[1764548808373,0.70895284,88584.0,88583.0,0.00213026]
[1764548808829,0.48317844,88584.0,88583.0,0.00213026]
[1764548809132,0.48217844,88584.0,88583.0,0.00213026]
[1764548809698,0.47481844,88584.0,88583.0,0.00213026]
[1764548809904,0.47817844,88584.0,88583.0,0.22790721]
[1764548810103,0.41411844,88584.0,88583.0,0.22790721]
[1764548810305,0.42147844,88584.0,88583.0,0.22790721]
[1764548810549,0.41747844,88584.0,88583.0,0.22790721]
[1764548810974,0.48227844,88584.0,88583.0,0.00213026]
[1764548811475,0.48127844,88584.0,88583.0,0.00213026]
[1764548811704,0.49217047,88584.0,88583.0,0.00213026]
[1764548811935,0.49317047,88584.0,88583.0,0.00213026]
[1764548813647,0.55569346,88584.0,88583.0,0.00213026]
[1764548814622,0.54180143,88584.0,88583.0,0.00213026]
[1764548814830,0.55269346,88584.0,88583.0,0.00213026]
[1764548815027,0.55869346,88584.0,88583.0,0.00213026]
[1764548815449,0.55769346,88584.0,88583.0,0.00213026]
[1764548815854,0.55969346,88584.0,88583.0,0.00213026]
[1764548816254,0.90073628,88584.0,88583.0,0.00213026]
[1764548816515,0.90673628,88584.0,88583.0,0.00213026]
[1764548816793,0.90673628,88584.0,88570.0,0.0004]
[1764548816794,0.01129012,88573.0,88570.0,0.0004]
[1764548817000,0.55941878,88571.0,88570.0,0.0004]
[1764548817157,0.99476878,88571.0,88570.0,0.0004]
[1764548817365,1.02781876,88571.0,88570.0,0.0004]
[1764548817736,0.28838153,88551.0,88550.0,0.0004]
[1764548817943,0.85963732,88551.0,88550.0,0.0004]
[1764548818368,0.75843356,88551.0,88550.0,0.0004]
[1764548818575,0.74754153,88551.0,88550.0,0.0004]
[1764548818955,0.74754153,88551.0,88550.0,0.00079663]
[1764548819585,0.39,88551.0,88550.0,0.22665772]
[1764548819722,0.39936,88551.0,88550.0,0.22665772]
[1764548819925,0.39936,88551.0,88550.0,0.00079663]
[1764548819926,0.46116,88551.0,88550.0,0.00079663]
[1764548820379,0.90813356,88551.0,88540.0,0.0004]
[1764548820545,0.28768405,88541.0,88540.0,0.00051891]
[1764548820750,0.01129611,88526.0,88521.0,0.01129675]
[1764548820947,0.01129726,88517.0,88512.0,0.0112979]
[1764548821168,0.37129726,88517.0,88513.0,0.2259549]
[1764548821369,0.36,88517.0,88514.0,0.22595279]
[1764548821607,0.0618,88512.0,88510.0,0.01129815]
[1764548821945,0.00736,88511.0,88508.0,0.23726418]
[1764548822090,0.41736,88511.0,88508.0,0.2372666]
[1764548822299,0.07309841,88508.0,88504.0,0.01129892]
[1764548822459,0.4318,88508.0,88504.0,0.01129892]
[1764548822664,0.37,88508.0,88505.0,0.01129879]
[1764548822888,0.07309866,88506.0,88496.0,0.01129994]
[1764548823099,0.0618,88504.0,88501.0,0.23728544]
[1764548823297,0.10715,88502.0,88500.0,11.71885712]
[1764548823516,0.06916,88501.0,88500.0,11.70755769]
[1764548823722,0.3918,88501.0,88500.0,11.70755769]
[1764548823928,0.33736,88501.0,88500.0,11.70755769]
[1764548824131,0.33,88501.0,88500.0,11.70755769]
[1764548824332,0.33736,88501.0,88500.0,11.70755769]
[1764548824738,0.33,88501.0,88500.0,11.80241769]
[1764548824936,0.24790376,88540.0,88520.0,0.22593764]
[1764548824937,0.2452,88521.0,88520.0,0.22593764]
[1764548825146,0.2452,88521.0,88518.0,0.23723829]
[1764548825147,0.58267843,88521.0,88518.0,0.23723829]
[1764548825343,0.58267843,88521.0,88501.0,0.22881376]
[1764548825344,0.59397518,88521.0,88514.0,0.01129764]
[1764548825547,0.00736,88520.0,88518.0,0.23723908]
[1764548825833,0.37865688,88520.0,88515.0,0.01129752]
[1764548826005,0.36736,88520.0,88517.0,0.01129726]
[1764548826214,0.104577,88519.0,88513.0,0.01129777]
[1764548826371,0.01129815,88510.0,88505.0,0.01129879]
[1764548826574,0.01129815,88510.0,88504.0,0.01129892]
[1764548826575,0.25256,88509.0,88504.0,0.01129892]
[1764548826777,0.01129879,88505.0,88501.0,0.10120376]
[1764548826999,0.38,88505.0,88503.0,0.01129905]
[1764548827199,0.38,88505.0,88504.0,0.22597848]
[1764548827949,0.38,88505.0,88504.0,0.23097848]
[1764548828791,0.38,88505.0,88504.0,0.005]
[1764548828996,0.38,88505.0,88503.0,0.01129905]
[1764548829200,0.6252,88505.0,88504.0,0.22840393]
[1764548829417,0.6252,88505.0,88504.0,0.23140393]
[1764548829654,0.6252,88505.0,88504.0,0.00542545]